bitfinex/quotes_BTCUSD_20251202
["timestamp","ask_amount","ask_price","bid_price","bid_amount"]
[1764696446327,0.00045814,91780.0,91779.0,0.91788477]
[1764696446531,0.00045814,91780.0,91779.0,0.93982652]
[1764696446732,0.00045814,91780.0,91779.0,0.79342652]
[1764696447099,0.00045814,91780.0,91779.0,0.77148477]
[1764696447299,0.00045814,91780.0,91779.0,0.79342652]
[1764696447709,0.00045814,91780.0,91779.0,0.77148477]
[1764696447841,0.00045814,91780.0,91779.0,0.79342652]
[1764696448026,0.00045814,91780.0,91779.0,0.75384477]
[1764696448235,0.00045814,91780.0,91779.0,0.79342652]
[1764696448854,0.00045814,91780.0,91779.0,1.30342652]
[1764696450027,0.0002,91800.0,91799.0,0.54086729]
[1764696450236,0.0002,91800.0,91799.0,0.91810656]
[1764696450373,0.0002,91800.0,91799.0,1.45004831]
[1764696450854,0.0002,91800.0,91799.0,1.36492715]
[1764696451197,0.0002,91800.0,91799.0,1.3868689]
[1764696452233,0.0002,91800.0,91799.0,0.75406656]
[1764696452461,0.0002,91800.0,91799.0,0.77170656]
[1764696452655,0.0002,91800.0,91799.0,0.75406656]
[1764696452885,0.0002,91800.0,91799.0,0.77170656]
[1764696453285,0.0002,91800.0,91799.0,0.23083927]
[1764696453450,0.0002,91800.0,91799.0,0.44870656]
[1764696453634,0.0002,91800.0,91799.0,0.47064831]
[1764696454150,0.0002,91800.0,91799.0,0.44870656]
[1764696454371,0.0002,91800.0,91799.0,0.44866656]
[1764696454946,0.0002,91800.0,91799.0,0.43106656]
[1764696455145,0.0002,91800.0,91799.0,0.44866656]
[1764696456196,0.0002,91800.0,91799.0,0.21319927]
[1764696456396,0.0002,91800.0,91799.0,0.44866656]
[1764696457458,0.0002,91800.0,91799.0,0.47060831]
[1764696457686,0.0002,91800.0,91799.0,0.44866656]
[1764696457886,0.0002,91800.0,91799.0,0.21319927]
[1764696458087,0.21806492,91800.0,91799.0,0.00026927]
[1764696461081,0.21806492,91800.0,91799.0,0.01786927]
[1764696463059,0.21806492,91800.0,91799.0,0.00026927]
[1764696463267,0.21855492,91800.0,91799.0,0.00026927]
[1764696463553,0.26756492,91800.0,91799.0,0.00026927]
[1764696464607,0.21855492,91800.0,91799.0,0.00026927]
[1764696465014,0.21806492,91800.0,91799.0,0.00026927]
[1764696465856,0.21806492,91800.0,91799.0,4.039e-05]
[1764696466036,0.21806492,91800.0,91799.0,0.07883927]
[1764696466236,0.0002,91800.0,91799.0,0.38770656]
[1764696467157,0.0002,91800.0,91799.0,0.16983927]
[1764696467357,0.0002,91800.0,91799.0,0.38770656]
[1764696468108,0.0002,91800.0,91799.0,0.40964831]
[1764696468313,0.0002,91800.0,91799.0,0.38770656]
[1764696468726,0.0002,91800.0,91799.0,0.40964831]
[1764696469492,0.0002,91800.0,91799.0,0.38770656]
[1764696470073,0.0002,91800.0,91799.0,0.40964831]
[1764696470467,0.0002,91800.0,91799.0,0.53410656]
[1764696471284,0.0002,91800.0,91799.0,0.55604831]
[1764696471623,0.0002,91800.0,91799.0,0.53410656]
[1764696472050,0.0002,91800.0,91799.0,1.06604831]
[1764696472258,0.01088992,91828.0,91799.0,1.06604831]
[1764696472259,0.01088873,91838.0,91833.0,0.22867578]
[1764696472474,0.21776809,91841.0,91835.0,0.27927189]
[1764696472688,0.01088862,91839.0,91835.0,0.06149]
[1764696472899,0.01088909,91835.0,91826.0,0.091]
[1764696473109,0.0108879,91845.0,91835.0,0.07909]
[1764696473331,0.01088755,91848.0,91835.0,0.07909]
[1764696473544,0.00255079,91836.0,91835.0,0.19203175]
[1764696473815,0.00255079,91836.0,91835.0,0.17009]
[1764696474456,0.00255079,91836.0,91835.0,1.00309]
[1764696474685,0.22858037,91872.0,91865.0,0.21770961]
[1764696474903,0.01088423,91876.0,91873.0,0.08495]
[1764696475134,0.00038376,91876.0,91873.0,0.09583459]
[1764696475343,0.01126799,91876.0,91875.0,0.06149]
[1764696475551,0.00038376,91876.0,91875.0,0.06149]
[1764696475770,0.00038376,91876.0,91875.0,0.15249]
[1764696475984,0.00038376,91876.0,91875.0,0.17009]
[1764696477269,0.0213489,91921.0,91892.0,0.01088234]
[1764696477464,0.0213489,91921.0,91875.0,1.0194144]
[1764696477465,0.22852052,91896.0,91893.0,0.0176]
[1764696477748,0.21762759,91901.0,91893.0,0.0176]
[1764696477749,0.01088127,91901.0,91894.0,0.0284821]
[1764696477974,0.2285158,91898.0,91895.0,0.0176]
[1764696478172,0.2285158,91898.0,91891.0,0.091]
[1764696478173,0.01088186,91896.0,91891.0,0.091]
[1764696478388,0.2285167,91897.0,91896.0,0.0176]
[1764696478572,0.2176468,91892.0,91890.0,0.04846]
[1764696478772,0.2176468,91892.0,91891.0,0.0176]
[1764696479732,0.21776183,91892.0,91891.0,0.0176]
[1764696480166,0.21776183,91892.0,91891.0,0.07909]
[1764696480491,0.00011503,91892.0,91891.0,0.15249]
[1764696480689,0.00011503,91892.0,91891.0,0.17009]
[1764696480893,0.00011503,91892.0,91891.0,0.15249]
[1764696481116,0.00011503,91892.0,91891.0,0.17009]
[1764696481586,0.00011503,91892.0,91891.0,0.15249]
[1764696481703,0.00011503,91892.0,91891.0,0.17009]
[1764696481903,0.00011503,91892.0,91891.0,0.6964144]
[1764696482104,0.00011503,91892.0,91891.0,0.70075615]
[1764696482310,0.00011503,91892.0,91891.0,0.6964144]
[1764696482566,0.00011503,91892.0,91891.0,0.77689774]
[1764696482972,0.00011503,91892.0,91891.0,1.09989774]
[1764696483313,0.02929276,91987.0,91927.0,0.01087819]
[1764696483314,0.45127534,91965.0,91927.0,0.01087819]
[1764696483518,0.2276736,91930.0,91929.0,0.04846]
[1764696483761,0.01011499,91930.0,91929.0,0.20095]
[1764696484182,0.01011499,91930.0,91929.0,0.72859]
[1764696484334,0.01011499,91930.0,91929.0,0.21859]
[1764696484537,0.01011499,91930.0,91929.0,0.10995]
[1764696484762,0.01011499,91930.0,91929.0,0.12759]
[1764696485168,0.22767182,91930.0,91929.0,0.21859]
[1764696485826,0.01011499,91930.0,91929.0,0.20095]
[1764696486044,0.21762075,91903.0,91902.0,0.14392]
[1764696486240,0.22847909,91913.0,91903.0,0.60546]
[1764696486485,0.01011499,91930.0,91909.0,0.06553]
[1764696486486,0.01087926,91918.0,91909.0,0.06553]
[1764696486720,0.21759849,91913.0,91906.0,0.01088068]
[1764696486947,0.01011499,91930.0,91909.0,0.01088032]
[1764696486948,0.01087843,91925.0,91909.0,0.01088032]
[1764696487162,0.21757771,91922.0,91919.0,0.06553]
[1764696487387,0.22845578,91922.0,91920.0,0.01764]
[1764696487596,0.2284248,91934.0,91924.0,0.06553]
[1764696487836,0.01087701,91937.0,91929.0,0.06553]
[1764696488047,0.01087713,91936.0,91929.0,0.16099]
[1764696488472,0.01087736,91934.0,91929.0,0.16099]
[1764696488712,0.00777,91940.0,91929.0,0.16099]
[1764696488930,0.00777,91940.0,91929.0,0.67099]
[1764696489186,0.00777,91940.0,91929.0,0.3785492]
[1764696489384,0.00777,91940.0,91929.0,0.3961892]
[1764696489812,0.00777,91940.0,91929.0,0.9061892]
[1764696490450,0.00777,91940.0,91929.0,0.3961892]
[1764696490653,0.00777,91940.0,91929.0,0.9061892]
[1764696490860,0.00777,91940.0,91929.0,0.92813095]
[1764696491072,0.00777,91940.0,91929.0,0.9061892]
[1764696492283,0.00777,91940.0,91929.0,0.92813095]
[1764696492488,0.00777,91940.0,91929.0,0.9061892]
[1764696492689,0.01284378,91930.0,91929.0,0.9061892]
[1764696492915,0.00777,91940.0,91939.0,0.21753553]
[1764696493105,0.05396,91992.0,91956.0,0.01087476]
[1764696493329,0.01087322,91969.0,91957.0,0.02851464]
[1764696493553,0.01087358,91966.0,91958.0,0.01087452]
[1764696493788,0.01087287,91972.0,91958.0,0.01087452]
[1764696493789,0.01087251,91975.0,91968.0,0.11551]
[1764696494011,0.00038529,91992.0,91969.0,0.01764]
[1764696494012,0.01087216,91978.0,91969.0,0.01764]
[1764696494261,0.01087192,91980.0,91969.0,0.1131]
[1764696494469,0.21742635,91986.0,91969.0,0.1131]
[1764696494470,0.01087145,91984.0,91981.0,0.06553]
[1764696494648,0.01087216,91978.0,91969.0,0.02851322]
[1764696494869,0.01087181,91981.0,91971.0,0.22833226]
[1764696495093,0.22829355,91987.0,91973.0,0.01087275]
[1764696495307,0.01087145,91984.0,91974.0,0.10633263]
[1764696495515,0.01087145,91984.0,91978.0,0.01087216]
[1764696495762,0.0112558,91992.0,91980.0,0.22830998]
[1764696495995,0.03265023,92034.0,91991.0,0.07640062]
[1764696496197,4e-05,92050.0,91999.0,0.89853]
[1764696496198,29.06937933,92000.0,91999.0,0.89853]
[1764696496423,29.06937933,92000.0,91999.0,0.99399]
[1764696496424,28.9367529,92000.0,91999.0,0.99399]
[1764696496631,28.90412647,92000.0,91999.0,0.99399]
[1764696496907,28.77776004,92000.0,91999.0,1.01167]
[1764696497115,28.74513361,92000.0,91999.0,1.01167]
[1764696497342,28.71250718,92000.0,91999.0,1.01167]
[1764696497561,28.1548063,92000.0,91999.0,1.05651299]
[1764696497810,28.08955344,92000.0,91999.0,1.01171]
[1764696498047,28.08955344,92000.0,91999.0,0.99399]
[1764696498234,28.08955344,92000.0,91999.0,1.01171]
[1764696498440,28.08955344,92000.0,91999.0,1.01167]
[1764696498649,28.08955344,92000.0,91999.0,0.99399]
[1764696499076,28.08955344,92000.0,91999.0,1.01167]
[1764696499266,28.08955344,92000.0,91999.0,0.99399]
[1764696499472,28.08955344,92000.0,91999.0,0.68867]
[1764696499677,28.08955344,92000.0,91999.0,0.71061175]
[1764696500095,28.08955344,92000.0,91999.0,1.03361175]
[1764696500303,28.08955344,92000.0,91999.0,0.99399]
[1764696500511,28.08955344,92000.0,91999.0,1.01167]
[1764696500733,28.08955344,92000.0,91999.0,0.99399]
[1764696500937,28.08955344,92000.0,91999.0,0.67099]
[1764696501149,28.08955344,92000.0,91999.0,0.71061175]
[1764696501375,28.08955344,92000.0,91999.0,1.01167]
[1764696501573,28.08955344,92000.0,91999.0,1.03361175]
[1764696501781,27.59329831,92000.0,91999.0,1.03361175]
[1764696501986,27.56069529,92000.0,91999.0,1.01167]
[1764696502187,27.56069529,92000.0,91999.0,1.0425912]
[1764696502188,27.52809546,92000.0,91999.0,1.0425912]
[1764696502392,26.71412351,92000.0,91999.0,0.85379305]
[1764696502597,26.71412351,92000.0,91999.0,0.80519185]
[1764696502799,26.71412351,92000.0,91999.0,0.43109]
[1764696503024,26.71412351,92000.0,91999.0,0.44877]
[1764696503430,26.70800351,92000.0,91999.0,0.77177]
[1764696503638,26.70800351,92000.0,91999.0,0.75409]
[1764696504015,26.71003301,92000.0,91999.0,0.77177]
[1764696504250,26.71003301,92000.0,91999.0,0.43109]
[1764696504492,26.71003301,92000.0,91999.0,0.06553]
[1764696504637,26.71003301,92000.0,91991.0,0.02719502]
[1764696504638,26.71003301,92000.0,91984.0,0.2681]
[1764696504846,0.01087062,91991.0,91967.0,0.06477346]
[1764696505043,0.01087027,91994.0,91973.0,0.2174541]
[1764696505044,0.01087039,91993.0,91973.0,0.2174541]
[1764696505243,0.01087074,91990.0,91984.0,0.01768]
[1764696505422,0.01087051,91992.0,91984.0,0.01768]
[1764696505627,0.01087039,91993.0,91984.0,0.01768]
[1764696505827,0.01087074,91990.0,91983.0,0.07172314]
[1764696506149,0.21748113,91962.0,91947.0,0.01087583]
[1764696506345,0.01087441,91959.0,91950.0,0.01768]
[1764696506551,0.22835794,91961.0,91960.0,0.0010996]
[1764696506754,0.21750951,91950.0,91949.0,0.04998]
[1764696506957,0.21750951,91950.0,91949.0,0.0010996]
[1764696507156,0.01087583,91947.0,91944.0,0.01768]
[1764696507367,0.01087452,91958.0,91944.0,0.01806529]
[1764696507569,0.2174605,91971.0,91950.0,0.01087547]
[1764696507886,0.01087417,91961.0,91951.0,0.02175071]
[1764696508087,0.01087488,91955.0,91951.0,0.02175071]
[1764696508239,0.01087547,91950.0,91944.0,0.00038529]
[1764696508440,0.21752134,91945.0,91944.0,0.00038529]
[1764696508990,0.21752134,91945.0,91944.0,0.01806529]
[1764696509198,0.36999134,91945.0,91944.0,0.00038529]
[1764696510643,0.21750745,91951.0,91944.0,0.00038529]
[1764696510845,0.01087488,91955.0,91944.0,0.00038529]
[1764696511047,0.01087512,91953.0,91944.0,0.00038529]
[1764696511269,0.01087512,91953.0,91945.0,0.01087606]
[1764696511574,0.01087464,91957.0,91946.0,0.01768]
[1764696511791,0.01087488,91955.0,91944.0,0.00038529]
[1764696512045,0.21752134,91945.0,91944.0,0.00038529]
[1764696512247,0.21752134,91945.0,91944.0,0.01806529]
[1764696512456,0.36999134,91945.0,91944.0,0.00038529]
[1764696512871,0.01087583,91947.0,91944.0,0.00038529]
[1764696513156,0.010875,91954.0,91944.0,0.00038529]
[1764696513358,0.01087559,91949.0,91944.0,0.00038529]
[1764696513574,0.10310488,91955.0,91944.0,0.01126147]
[1764696513801,0.10310488,91955.0,91944.0,0.00038529]
[1764696513802,0.06081,91945.0,91944.0,0.00038529]
[1764696514017,0.2175592,91929.0,91918.0,0.01768]
[1764696514223,0.2737092,91929.0,91918.0,0.01768]
[1764696514439,0.3676992,91929.0,91891.0,0.01088245]
[1764696514695,0.3676992,91929.0,91917.0,0.01768]
[1764696514903,0.3676992,91929.0,91904.0,0.02176183]
[1764696515128,0.3676992,91929.0,91869.0,0.43539789]
[1764696515129,0.3676992,91929.0,91911.0,0.01768]
[1764696515528,0.3676992,91929.0,91885.0,0.02176633]
[1764696515529,0.43022219,91929.0,91906.0,0.01768]
[1764696515873,0.43022219,91929.0,91895.0,0.02176396]
[1764696516348,0.01088139,91900.0,91895.0,0.02176396]
[1764696516603,0.01088032,91909.0,91895.0,0.02176396]
[1764696516604,0.11023,91896.0,91895.0,0.00011499]
[1764696516770,0.32786969,91896.0,91895.0,0.00011499]
[1764696516993,0.42020969,91896.0,91895.0,0.00011499]
[1764696518208,0.50037268,91896.0,91895.0,0.00011499]
[1764696518416,0.20257,91896.0,91895.0,0.00011499]
[1764696518662,0.142,91906.0,91895.0,0.00011499]
[1764696518977,0.142,91906.0,91901.0,0.01088127]
[1764696519211,0.04966,91906.0,91901.0,0.01088127]
[1764696519419,0.04966,91906.0,91903.0,0.22850156]
[1764696519615,0.04966,91906.0,91895.0,0.01099697]
[1764696519840,0.06054068,91906.0,91896.0,0.01088186]
[1764696520065,0.04966,91906.0,91897.0,0.01088174]
[1764696520270,0.04966,91906.0,91900.0,0.22850721]
[1764696520483,0.04966,91906.0,91897.0,0.01088174]
[1764696520688,0.04966,91906.0,91898.0,0.01764]
[1764696520889,0.06054068,91906.0,91898.0,0.02852162]
[1764696521100,0.01088091,91904.0,91899.0,0.01088151]
[1764696521321,0.04966,91906.0,91900.0,0.01088139]
[1764696521530,0.04966,91906.0,91903.0,0.22850097]
[1764696521737,0.04966,91906.0,91903.0,0.01088103]
[1764696521934,0.04966,91906.0,91900.0,0.01088139]
[1764696522056,0.04966,91906.0,91899.0,0.01088151]
[1764696522252,0.26727414,91906.0,91898.0,0.01764]
[1764696522461,0.01088127,91901.0,91898.0,0.01764]
[1764696522881,0.01088091,91904.0,91898.0,0.02852162]
[1764696523081,0.01088127,91901.0,91898.0,0.01764]
[1764696523280,0.01088091,91904.0,91897.0,0.22851666]
[1764696523496,0.04966,91916.0,91907.0,0.01088056]
[1764696523706,0.04625,91930.0,91906.0,0.21761279]
[1764696523707,0.01087855,91924.0,91915.0,0.21759225]
[1764696523881,0.01087855,91924.0,91916.0,0.01764]
[1764696523882,0.01087914,91919.0,91916.0,0.01764]
[1764696524080,0.21761691,91905.0,91891.0,0.22852951]
[1764696524348,0.06404,91907.0,91900.0,0.01088139]
[1764696524475,0.0108802,91910.0,91899.0,0.01088151]
[1764696524687,0.04966,91899.0,91898.0,0.02176325]
[1764696525026,0.04966,91899.0,91898.0,0.01764]
[1764696525579,0.22851421,91898.0,91895.0,0.00011499]
[1764696525791,0.26130732,91896.0,91895.0,0.00011499]
[1764696525983,0.06054151,91899.0,91895.0,0.01775499]
[1764696526182,0.04966,91899.0,91895.0,0.01775499]
[1764696526417,0.04966,91899.0,91896.0,0.01088186]
[1764696526609,0.26729147,91899.0,91897.0,0.01764]
[1764696526820,0.28167732,91896.0,91895.0,0.00011499]
[1764696527078,0.06404,91896.0,91895.0,0.00011499]
[1764696527235,0.15638,91896.0,91895.0,0.00011499]
[1764696528430,0.1727044,91896.0,91895.0,0.00011499]
[1764696529640,0.23522739,91896.0,91895.0,4.99e-06]
[1764696530039,0.1727044,91896.0,91895.0,4.99e-06]
[1764696530656,0.22854737,91885.0,91879.0,0.01078314]
[1764696530938,0.01088352,91882.0,91879.0,0.00011503]
[1764696531138,0.06404,91880.0,91879.0,0.00011503]
[1764696531494,0.15638,91880.0,91879.0,0.00011503]
[1764696532088,0.1727044,91880.0,91879.0,1.466e-05]
[1764696532296,0.15638,91880.0,91879.0,1.466e-05]
[1764696532500,0.01088234,91892.0,91886.0,0.01088305]
[1764696532701,0.01088091,91904.0,91894.0,0.0108821]
[1764696532938,0.09234,91913.0,91891.0,0.02734]
[1764696533261,0.22852463,91894.0,91889.0,0.01088269]
[1764696533467,0.01088234,91892.0,91887.0,0.24617983]
[1764696533682,0.01088245,91891.0,91887.0,0.02841734]
[1764696533897,0.21765575,91889.0,91887.0,0.01753441]
[1764696534417,0.22853453,91890.0,91887.0,0.01753441]
[1764696534553,0.21765544,91889.0,91887.0,0.01753441]
[1764696534997,0.21765544,91889.0,91887.0,0.01741627]
[1764696535785,0.21767495,91881.0,91879.0,1.466e-05]
[1764696535997,0.21767495,91881.0,91880.0,0.01764]
[1764696536198,0.21767495,91881.0,91879.0,1.466e-05]
[1764696536381,0.21768233,91877.0,91876.0,0.01753022]
[1764696536774,0.00011539,91877.0,91876.0,0.01753022]
[1764696536948,0.00011539,91877.0,91876.0,0.03929869]
[1764696537508,0.00011539,91877.0,91875.0,0.217686]
[1764696537710,0.00011539,91877.0,91876.0,0.01764]
[1764696537914,0.00011539,91877.0,91876.0,0.01749179]
[1764696538330,0.00011539,91877.0,91876.0,0.14823354]
[1764696538534,0.00011539,91877.0,91876.0,0.76110201]
[1764696538874,0.00011539,91877.0,91876.0,0.85403354]
[1764696539069,0.00011539,91877.0,91876.0,0.73933354]
[1764696539678,0.04966,91939.0,91935.0,0.22842063]
[1764696539893,0.04966,91939.0,91915.0,0.0544]
[1764696540093,0.01088044,91908.0,91899.0,0.01088151]
[1764696540295,0.01088044,91908.0,91892.0,0.01088234]
[1764696540296,0.01087973,91914.0,91905.0,0.0108808]
[1764696540486,0.21762785,91900.0,91886.0,0.01088305]
[1764696540667,0.01088174,91897.0,91892.0,0.01088234]
[1764696540868,0.01088056,91907.0,91900.0,0.01088139]
[1764696541050,0.01088103,91903.0,91901.0,0.01764]
[1764696541265,0.01088186,91896.0,91890.0,0.01088257]
[1764696541444,0.00011554,91896.0,91893.0,0.01088222]
[1764696541655,0.00011554,91896.0,91895.0,0.56208144]
[1764696541856,0.00011554,91896.0,91895.0,0.54013969]
[1764696542186,0.00011554,91896.0,91895.0,0.61648144]
[1764696542387,0.00011554,91896.0,91895.0,0.91753969]
[1764696542597,0.00011554,91896.0,91895.0,0.93948144]
[1764696542806,0.00011554,91896.0,91895.0,0.91753969]
[1764696543013,0.00011554,91896.0,91895.0,0.072]
[1764696543234,0.00011554,91896.0,91894.0,0.31764092]
[1764696543414,0.00011554,91896.0,91895.0,0.0176]
[1764696544026,0.00011554,91896.0,91895.0,0.02194175]
[1764696544315,0.00011554,91896.0,91895.0,0.07634175]
[1764696544550,0.00011554,91896.0,91895.0,0.41644175]
[1764696544961,0.00011554,91896.0,91895.0,0.0544]
[1764696545178,0.00011554,91896.0,91895.0,0.03936396]
[1764696545407,0.00011554,91896.0,91895.0,0.06130571]
[1764696545610,0.00011554,91896.0,91895.0,0.03936396]
[1764696545831,0.00011554,91896.0,91895.0,0.02176396]
[1764696546047,0.22848561,91910.0,91906.0,0.21761286]
[1764696546246,0.01088032,91909.0,91906.0,0.37489354]
[1764696546447,0.0108802,91910.0,91907.0,0.0176]
[1764696546652,0.0108802,91910.0,91907.0,0.23520993]
[1764696547015,0.43504232,91946.0,91912.0,0.01087997]
[1764696547247,0.43504232,91946.0,91907.0,0.0176]
[1764696547248,0.00034764,91938.0,91933.0,0.01087748]
[1764696547488,0.00034764,91938.0,91933.0,0.2460265]
[1764696547690,0.01087736,91934.0,91920.0,0.63015454]
[1764696547900,0.0108776,91932.0,91926.0,0.01087831]
[1764696548108,0.09084,91937.0,91926.0,0.01087831]
[1764696548109,0.01087642,91942.0,91930.0,0.01087784]
[1764696548270,0.01087784,91930.0,91920.0,0.64103356]
[1764696548445,0.01087713,91936.0,91918.0,0.01087926]
[1764696548446,0.01087819,91927.0,91921.0,0.0176]
[1764696548664,0.01087831,91926.0,91921.0,0.0176]
[1764696548962,0.22844806,91925.0,91922.0,0.0176]
[1764696549202,0.22846146,91920.0,91915.0,0.22847147]
[1764696549337,0.01087878,91922.0,91918.0,0.22846392]
[1764696549743,0.01087902,91920.0,91914.0,0.01087973]
[1764696549977,0.01087878,91922.0,91917.0,0.22846509]
[1764696550180,0.21758101,91920.0,91918.0,0.0176]
[1764696550547,0.22845952,91920.0,91919.0,0.0176]
[1764696550712,0.21757524,91923.0,91919.0,0.0176]
[1764696550922,0.01087796,91929.0,91923.0,0.01087867]
[1764696551142,0.2284301,91932.0,91927.0,0.22844077]
[1764696551283,0.0108776,91932.0,91927.0,0.22844077]
[1764696551488,0.01087819,91927.0,91922.0,0.01087878]
[1764696551703,0.22843856,91929.0,91926.0,0.01058831]
[1764696551905,0.01087725,91935.0,91926.0,0.01087831]
[1764696552112,0.21755796,91930.0,91927.0,0.22844076]
[1764696552329,0.01087807,91928.0,91925.0,0.2284449]
[1764696552550,0.22844041,91928.0,91923.0,0.01087867]
[1764696552758,0.2175805,91920.0,91918.0,0.63015454]
[1764696552961,0.0108789,91921.0,91919.0,0.0176]
[1764696553128,0.26454849,91921.0,91919.0,0.0176]
[1764696553733,0.22845715,91923.0,91919.0,0.0176]
[1764696553941,0.22842993,91932.0,91924.0,0.01087855]
[1764696554152,0.21756186,91928.0,91924.0,0.01087855]
[1764696554298,0.0108776,91932.0,91920.0,0.63015454]
[1764696554299,0.04697,91937.0,91926.0,0.01087831]
[1764696554523,0.04697,91942.0,91936.0,0.21754238]
[1764696554753,0.01122453,91938.0,91937.0,0.0176]
[1764696554955,0.01087736,91934.0,91924.0,0.01087855]
[1764696555111,0.21755715,91930.0,91928.0,0.0176]
[1764696555693,0.22843482,91931.0,91922.0,0.21757464]
[1764696555694,0.01087843,91925.0,91922.0,0.01087878]
[1764696555898,0.22844507,91926.0,91923.0,0.23517267]
[1764696556084,0.01087819,91927.0,91923.0,0.02847867]
[1764696556295,0.22845238,91923.0,91919.0,0.01087914]
[1764696556595,0.04697,91924.0,91920.0,0.24605922]
[1764696556837,0.01087878,91922.0,91916.0,0.03455]
[1764696557012,0.01087914,91919.0,91917.0,0.0176]
[1764696557228,0.22846229,91919.0,91915.0,0.22847191]
[1764696557408,0.04697,91924.0,91920.0,0.21757907]
[1764696557680,0.04697,91924.0,91918.0,0.24606336]
[1764696557681,0.01087878,91922.0,91918.0,0.02847926]
[1764696557880,0.21759963,91913.0,91910.0,0.66470454]
[1764696558079,0.01087938,91917.0,91911.0,0.23519944]
[1764696558318,0.01087914,91919.0,91911.0,0.0176]
[1764696558516,0.13781,91924.0,91917.0,0.22846622]
[1764696558517,0.0108789,91921.0,91917.0,0.22846622]
[1764696558719,0.21758559,91918.0,91915.0,0.01087961]
[1764696558897,0.21758559,91918.0,91914.0,0.22847248]
[1764696558898,0.22846485,91918.0,91914.0,0.22847248]
[1764696559098,0.13781,91924.0,91911.0,0.23520045]
[1764696559099,0.21755183,91933.0,91927.0,0.01087819]
[1764696559321,0.22843295,91931.0,91928.0,0.0176]
[1764696559523,0.21755683,91930.0,91928.0,0.0176]
[1764696559776,0.22843295,91931.0,91929.0,0.0176]
[1764696559777,0.21755563,91931.0,91929.0,0.0176]
[1764696560192,0.0108776,91932.0,91929.0,0.0176]
[1764696560401,0.22845784,91921.0,91915.0,0.01087961]
[1764696560601,0.22845784,91921.0,91916.0,0.01087949]
[1764696560808,0.0108789,91921.0,91917.0,0.0176]
[1764696561000,0.0108789,91921.0,91917.0,0.21758736]
[1764696561340,0.01087985,91913.0,91910.0,0.03455]
[1764696561664,0.01087985,91913.0,91877.0,0.09376875]
[1764696561665,0.21763969,91895.0,91875.0,0.01088435]
[1764696561789,0.21763969,91895.0,91881.0,0.02176728]
[1764696561983,0.04697,91899.0,91894.0,0.1176]
[1764696562265,0.21763849,91896.0,91895.0,0.0176]
[1764696562868,0.21763849,91896.0,91894.0,0.1]
[1764696563093,0.13759,91895.0,91894.0,0.1]
[1764696563290,0.21643739,91895.0,91894.0,0.1]
[1764696564682,0.21643739,91895.0,91835.0,0.01088909]
[1764696564683,0.01088743,91849.0,91835.0,0.01088909]
[1764696564874,0.22860664,91861.0,91849.0,0.01088743]
[1764696565073,0.01088589,91862.0,91853.0,0.21773777]
[1764696565362,0.06252299,91890.0,91861.0,0.01088601]
[1764696565562,0.01088435,91875.0,91865.0,0.01088553]
[1764696565862,0.30851185,91882.0,91862.0,0.0176]
[1764696565863,0.05785328,91884.0,91876.0,0.01088423]
[1764696566057,0.04697,91894.0,91881.0,0.01088364]
[1764696566058,0.01088257,91890.0,91881.0,0.01088364]
[1764696566186,0.21767049,91882.0,91875.0,0.0176]
[1764696566382,0.0578534,91883.0,91875.0,0.0176]
[1764696566383,0.04697,91883.0,91880.0,0.01088376]
[1764696566594,0.21768233,91877.0,91875.0,0.0176]
[1764696566838,0.01088234,91892.0,91883.0,0.0108834]
[1764696567036,0.21766728,91884.0,91879.0,0.63015454]
[1764696567245,0.21767099,91882.0,91879.0,0.63015454]
[1764696567449,0.21767099,91882.0,91878.0,0.01088399]
[1764696567683,0.01088352,91882.0,91879.0,0.21767759]
[1764696567889,0.01088376,91880.0,91875.0,0.24628519]
[1764696568082,0.01088352,91882.0,91876.0,0.0176]
[1764696568083,0.21767285,91881.0,91876.0,0.0176]
[1764696568423,0.21767996,91878.0,91876.0,0.0176]
[1764696568768,0.2176847,91876.0,91875.0,0.00011554]
[1764696569101,0.2176847,91876.0,91875.0,0.01771554]
[1764696569459,0.22857811,91873.0,91868.0,0.37645763]
[1764696569696,0.22857811,91873.0,91868.0,0.228587]
[1764696569883,0.22857811,91873.0,91869.0,0.01088506]
[1764696570270,0.01088411,91877.0,91871.0,0.01088482]
[1764696570469,0.01088435,91875.0,91870.0,0.01088494]
[1764696570670,0.01088447,91874.0,91870.0,0.01088494]
[1764696570871,0.01088447,91874.0,91866.0,0.01088542]
[1764696571047,0.22857719,91873.0,91870.0,0.01088494]
[1764696571247,0.01088459,91873.0,91869.0,0.01088506]
[1764696571454,0.21770376,91869.0,91866.0,0.00038376]
[1764696571708,0.02541,91867.0,91866.0,0.00038376]
[1764696572118,0.09084,91889.0,91879.0,0.01088387]
[1764696572287,0.01088151,91899.0,91890.0,0.01088257]
[1764696572508,0.04697,91909.0,91899.0,0.01088151]
[1764696572738,0.04697,91909.0,91887.0,0.0176]
[1764696572739,0.04697,91919.0,91914.0,0.01087973]
[1764696572906,0.01087926,91918.0,91913.0,0.22847626]
[1764696573106,0.01087949,91916.0,91911.0,0.01088009]
[1764696573307,0.01087949,91916.0,91911.0,0.22848187]
[1764696573521,0.0108802,91910.0,91902.0,0.01088115]
[1764696573704,0.00011552,91910.0,91907.0,0.01088056]
[1764696573916,0.00011552,91910.0,91908.0,0.21760701]
[1764696575233,0.00011552,91910.0,91904.0,0.02194175]
[1764696575234,0.00011552,91910.0,91896.0,0.01088186]
[1764696575459,0.01088186,91896.0,91889.0,0.02176539]
[1764696575675,0.01088293,91887.0,91882.0,0.21767049]
[1764696575904,0.01088234,91892.0,91886.0,0.01088305]
[1764696576131,0.01088257,91890.0,91887.0,0.01088293]
[1764696576356,0.22853162,91891.0,91888.0,0.01088281]
[1764696576568,0.01088234,91892.0,91889.0,0.2176539]
[1764696576810,0.21765235,91890.0,91886.0,0.22854252]
[1764696577027,0.27509176,91895.0,91888.0,0.01088281]
[1764696577247,0.22852746,91893.0,91888.0,0.01088281]
[1764696577456,0.22854157,91887.0,91886.0,0.0176]
[1764696577668,0.01088257,91890.0,91886.0,0.24614344]
[1764696577867,0.01088257,91890.0,91886.0,0.02848305]
[1764696577868,0.22853765,91889.0,91886.0,0.02848305]
[1764696578098,0.10949299,91919.0,91890.0,0.01088257]
[1764696578312,0.01087985,91913.0,91903.0,0.01088103]
[1764696578555,0.22860094,91910.0,91906.0,0.22849309]
[1764696578729,0.22860045,91910.0,91906.0,0.22849309]
[1764696579154,0.00011552,91910.0,91908.0,0.21760716]
[1764696579355,0.01088056,91907.0,91903.0,0.21762023]
[1764696579563,0.00011552,91910.0,91907.0,0.01088056]
[1764696579742,0.00011552,91910.0,91909.0,0.08284175]
[1764696579929,0.00011552,91910.0,91909.0,0.12999]
[1764696580120,0.00011552,91910.0,91909.0,0.39809]
[1764696580404,0.00011552,91910.0,91909.0,0.29610654]
[1764696580576,0.00011552,91910.0,91909.0,0.23520654]